[Event "22nd Hoogeveen Open 2018"]
[Site "Hoogeveen"]
[Date "2018.10.22"]
[Round "4"]
[White "Van Kooten, Luuk"]
[Black "Thrish Karthik"]
[Result "0-1"]
[ECO "D21"]
[WhiteElo "2320"]
[BlackElo "2116"]
[Annotator "NA"]
[PlyCount "94"]
[EventDate "2018.10.20"]
[EventType "swiss"]
[EventCountry "NED"]
[SourceTitle "playchess.com"]
[Source "ChessBase"]
[SourceQuality "1"]
[TimeControl "40/5400+30:1800+30"]

1. d4 {[%emt 0:00:00]} d5 {[%emt 0:00:00]} 2. c4 {[%emt 0:00:23]} dxc4 {[%emt 0:00:00]} 3. e4 {[%emt 0:00:17]} b5 {[%emt 0:01:14]} 4. a4 {[%emt 0:03:52]} c6 {[%emt 0:01:00]} 5. Nf3 {[%emt 0:02:13]} e6 {[%emt 0:18:56]} 6. b3 {[%emt 0:10:44]} Nf6 {[%emt 0:12:40]} 7. e5 {[%emt 0:12:26]} Ne4 {[%emt 0:06:17]} 8. bxc4 {[%emt 0:04:29]} Bb4+ {[%emt 0:00:32]} 9. Nbd2 {[%emt 0:01:27]} Bc3 {[%emt 0:02:55]} 10. Ra3 {[%emt 0:05:00]} b4 {[%emt 0:01:33]} 11. Ra2 {[%emt 0:04:26]} c5 {[%emt 0:07:17]} 12. Bd3 {[%emt 0:05:43]} Bb7 {[%emt 0:00:26]} 13. O-O {[%emt 0:02:02]} Nxd2 {[%emt 0:02:21]} 14. Bxd2 {[%emt 0:00:29]} cxd4 {[%emt 0:02:25]} 15. Bf4 {[%emt 0:03:24]} Nd7 {[%emt 0:02:52]} 16. Nd2 {[%emt 0:05:20]} Nc5 {[%emt 0:03:51]} 17. Nb3 {[%emt 0:00:19]} Nxd3 {[%emt 0:07:01]} 18. Qxd3 {[%emt 0:00:07]} Qc7 {[%emt 0:02:25]} 19. Rd1 {[%emt 0:03:14]} Ba6 {[%emt 0:02:56]} 20. Nd2 {[%emt 0:06:01]} f5 {[%emt 0:10:37]} 21. exf6 {[%emt 0:04:32]} Qxf4 {[%emt 0:00:10]} 22. fxg7 {[%emt 0:00:09]} Rg8 {[%emt 0:00:19]} 23. Qxh7 {[%emt 0:01:20]} O-O-O {[%emt 0:03:04]} 24. Ne4 {[%emt 0:02:46]} Bxc4 {[%emt 0:04:05]} 25. g3 {[%emt 0:01:37]} Qf7 {[%emt 0:03:04]} 26. Raa1 {[%emt 0:02:35]} Qxg7 {[%emt 0:01:18]} 27. Qh4 {[%emt 0:01:18]} Bxa1 {[%emt 0:02:17]} 28. Rxa1 {[%emt 0:00:13]} Rh8 {[%emt 0:00:42]} 29. Qf4 {[%emt 0:00:37]} Qh6 {[%emt 0:00:15]} 30. Qxh6 {[%emt 0:00:27]} Rxh6 {[%emt 0:00:05]} 31. Rc1 {[%emt 0:00:04]} a5 {[%emt 0:00:54]} 32. Rxc4+ {[%emt 0:00:52]} Kb7 {[%emt 0:00:33]} 33. Nc5+ {[%emt 0:01:10]} Kb6 {[%emt 0:00:44]} 34. Nd3 {[%emt 0:00:22]} Rh7 {[%emt 0:01:18]} 35. Rc5 {[%emt 0:00:44]} Ra7 {[%emt 0:00:38]} 36. Re5 {[%emt 0:01:15]} Rd6 {[%emt 0:00:32]} 37. Kf1 {[%emt 0:00:31]} Kc6 {[%emt 0:00:32]} 38. Ke2 {[%emt 0:00:36]} Kd7 {[%emt 0:00:33]} 39. Rg5 {[%emt 0:01:45]} Rc7 {[%emt 0:00:29]} 40. Rxa5 {[%emt 0:02:26]} Rb6 {[%emt 0:00:32]} 41. Nc5+ {[%emt 0:34:43]} Kd6 {[%emt 0:05:46]} 42. Nb3 {[%emt 0:00:00]} Rc2+ {[%emt 0:09:07]} 43. Kd1 {[%emt 0:00:00]} Rxf2 {[%emt 0:07:20]} 44. Nxd4 {[%emt 0:00:00]} b3 {[%emt 0:02:32]} 45. Nb5+ {[%emt 0:00:00]} Kc5 {[%emt 0:01:27]} 46. Kc1 {[%emt 0:00:00]} Kb4 {[%emt 0:01:28]} 47. Ra7 {[%emt 0:00:00]} b2+ {[%emt 0:01:12]} 0-1

[Event "22nd Hoogeveen Open 2018"]
[Site "Hoogeveen"]
[Date "2018.10.22"]
[Round "4"]
[White "Den Hartog, Marijn"]
[Black "Konings, Frans"]
[Result "1-0"]
[ECO "C54"]
[WhiteElo "2296"]
[BlackElo "2195"]
[Annotator "NA"]
[PlyCount "115"]
[EventDate "2018.10.20"]
[EventType "swiss"]
[EventCountry "NED"]
[SourceTitle "playchess.com"]
[Source "ChessBase"]
[SourceQuality "1"]
[TimeControl "40/5400+30:1800+30"]

1. e4 {[%emt 0:00:00]} e5 {[%emt 0:00:00]} 2. Nf3 {[%emt 0:00:00]} Nc6 {[%emt 0:00:01]} 3. Bc4 {[%emt 0:00:11]} Bc5 {[%emt 0:00:06]} 4. d3 {[%emt 0:00:31]} Nf6 {[%emt 0:00:47]} 5. O-O {[%emt 0:00:20]} d6 {[%emt 0:00:51]} 6. c3 {[%emt 0:01:46]} a6 {[%emt 0:00:07]} 7. Bb3 {[%emt 0:00:11]} Ba7 {[%emt 0:00:20]} 8. h3 {[%emt 0:01:31]} h6 {[%emt 0:04:41]} 9. Re1 {[%emt 0:01:48]} O-O {[%emt 0:00:51]} 10. Nbd2 {[%emt 0:00:22]} Be6 {[%emt 0:02:14]} 11. Nc4 {[%emt 0:02:51]} Re8 {[%emt 0:09:44]} 12. Ne3 {[%emt 0:16:22]} Qd7 {[%emt 0:07:06]} 13. Bc2 {[%emt 0:12:20]} Rad8 {[%emt 0:00:34]} 14. d4 {[%emt 0:03:05]} exd4 $11 {[%emt 0:10:14]} 15. Nxd4 {[%emt 0:04:26]} Nxd4 {[%emt 0:13:00]} 16. cxd4 {[%emt 0:00:04]} d5 {[%emt 0:00:15]} 17. e5 {[%emt 0:00:16]} Ne4 {[%emt 0:02:50]} 18. b4 {[%emt 0:06:34]} Qe7 {[%emt 0:05:24]} 19. f3 {[%emt 0:10:14]} Qh4 {[%emt 0:20:54]} 20. fxe4 {[%emt 0:04:29]} dxe4 {[%emt 0:01:43]} 21. Bb2 {[%emt 0:01:37]} Bxh3 {[%emt 0:00:49]} 22. gxh3 {[%emt 0:01:49]} Rxe5 {[%emt 0:01:04]} 23. Ng2 {[%emt 0:07:57]} Qxh3 {[%emt 0:01:29]} 24. Re3 {[%emt 0:02:04]} Qe6 {[%emt 0:02:08]} 25. dxe5 {[%emt 0:02:59]} Rxd1+ {[%emt 0:02:08]} 26. Rxd1 {[%emt 0:00:04]} Qxa2 {[%emt 0:01:53]} 27. Bxe4 {[%emt 0:04:14]} Kf8 {[%emt 0:01:00]} 28. Rd2 {[%emt 0:08:11]} Qc4 {[%emt 0:01:21]} 29. Bf3 {[%emt 0:00:29]} Qxb4 {[%emt 0:00:26]} 30. Rde2 {[%emt 0:00:54]} g5 {[%emt 0:01:57]} 31. Kf1 {[%emt 0:01:13]} Bxe3 {[%emt 0:00:31]} 32. Nxe3 {[%emt 0:00:10]} Qf4 {[%emt 0:00:59]} 33. Kg2 {[%emt 0:00:28]} c6 {[%emt 0:00:32]} 34. Bg4 {[%emt 0:03:13]} Qe4+ {[%emt 0:01:27]} 35. Bf3 {[%emt 0:00:23]} Qf4 {[%emt 0:00:36]} 36. Bc3 {[%emt 0:01:19]} b5 {[%emt 0:01:11]} 37. Bxc6 {[%emt 0:01:15]} Kg8 {[%emt 0:03:31]} 38. Bf3 {[%emt 0:00:55]} b4 {[%emt 0:00:04]} 39. Nd5 {[%emt 0:01:12]} Qc4 {[%emt 0:00:13]} 40. Bb2 {[%emt 0:00:35]} Kf8 {[%emt 0:04:15]} 41. Nf6 {[%emt 0:30:30]} Qd3 {[%emt 0:04:41]} 42. Rf2 {[%emt 0:00:00]} a5 {[%emt 0:01:26]} 43. Be4 {[%emt 0:00:00]} Qd1 {[%emt 0:00:39]} 44. e6 {[%emt 0:00:00]} fxe6 {[%emt 0:00:36]} 45. Bc2 {[%emt 0:00:00]} Qd8 {[%emt 0:01:23]} 46. Nh7+ {[%emt 0:00:00]} Kg8 {[%emt 0:00:15]} 47. Rf8+ {[%emt 0:00:00]} Qxf8 {[%emt 0:00:05]} 48. Nxf8 {[%emt 0:00:00]} Kxf8 {[%emt 0:00:03]} 49. Bf6 {[%emt 0:00:00]} Kf7 {[%emt 0:02:02]} 50. Bd8 {[%emt 0:00:00]} a4 {[%emt 0:03:42]} 51. Bxa4 {[%emt 0:00:00]} Kg6 {[%emt 0:00:13]} 52. Bc2+ {[%emt 0:00:00]} Kh5 {[%emt 0:00:16]} 53. Kg3 {[%emt 0:00:00]} e5 {[%emt 0:00:28]} 54. Be7 {[%emt 0:00:00]} b3 {[%emt 0:00:36]} 55. Bxb3 {[%emt 0:00:00]} Kg6 {[%emt 0:00:15]} 56. Bc2+ {[%emt 0:00:00]} Kh5 {[%emt 0:01:50]} 57. Be4 {[%emt 0:00:00]} g4 {[%emt 0:00:14]} 58. Bf5 {[%emt 0:00:00]} 1-0

[Event "22nd Hoogeveen Open 2018"]
[Site "Hoogeveen"]
[Date "2018.10.22"]
[Round "4"]
[White "De Boer, Eelke"]
[Black "De Boer, Bas"]
[Result "1-0"]
[ECO "B94"]
[WhiteElo "2285"]
[BlackElo "2102"]
[Annotator "NA"]
[PlyCount "81"]
[EventDate "2018.10.20"]
[EventType "swiss"]
[EventCountry "NED"]
[SourceTitle "playchess.com"]
[Source "ChessBase"]
[SourceQuality "1"]
[TimeControl "40/5400+30:1800+30"]

1. e4 {[%emt 0:00:00]} c5 {[%emt 0:00:00]} 2. Nf3 {[%emt 0:00:00]} d6 {[%emt 0:00:00]} 3. d4 {[%emt 0:00:00]} cxd4 {[%emt 0:00:00]} 4. Nxd4 {[%emt 0:00:00]} Nf6 {[%emt 0:00:00]} 5. Nc3 {[%emt 0:00:05]} a6 {[%emt 0:00:00]} 6. Bg5 {[%emt 0:00:18]} Nbd7 {[%emt 0:00:05]} 7. Qe2 {[%emt 0:00:10]} h6 {[%emt 0:00:26]} 8. Bh4 {[%emt 0:00:06]} g6 {[%emt 0:00:09]} 9. f4 {[%emt 0:00:10]} e5 {[%emt 0:00:12]} 10. fxe5 {[%emt 0:00:07]} dxe5 {[%emt 0:00:04]} 11. O-O-O {[%emt 0:00:13]} Qc7 {[%emt 0:00:04]} 12. Nb3 {[%emt 0:00:12]} b5 {[%emt 0:00:16]} 13. Qf3 {[%emt 0:00:08]} Bg7 {[%emt 0:00:41]} 14. g4 {[%emt 0:06:08]} Bb7 {[%emt 0:01:57]} 15. a3 {[%emt 0:02:05]} O-O {[%emt 0:05:03]} 16. Bd3 {[%emt 0:12:43]} Bc6 {[%emt 0:11:28]} 17. Kb1 $11 {[%emt 0:23:31]} Rab8 {[%emt 0:08:26]} 18. g5 {[%emt 0:06:15]} hxg5 {[%emt 0:05:52]} 19. Bxg5 {[%emt 0:00:06]} a5 {[%emt 0:01:18]} 20. h4 {[%emt 0:09:46]} Nh5 {[%emt 0:03:43]} 21. Rdg1 {[%emt 0:09:25]} a4 {[%emt 0:03:17]} 22. Nd2 {[%emt 0:01:17]} b4 {[%emt 0:04:18]} 23. axb4 {[%emt 0:00:21]} Rxb4 {[%emt 0:02:45]} 24. Be7 {[%emt 0:06:25]} Qb7 {[%emt 0:01:30]} 25. Bxb4 {[%emt 0:04:47]} Qxb4 {[%emt 0:00:02]} 26. Bc4 {[%emt 0:01:30]} a3 {[%emt 0:13:21]} 27. Bb3 {[%emt 0:09:02]} Kh8 {[%emt 0:04:50]} 28. Rg5 {[%emt 0:03:27]} Ndf6 {[%emt 0:00:53]} 29. bxa3 {[%emt 0:01:48]} Qxa3 {[%emt 0:02:53]} 30. Nc4 {[%emt 0:00:30]} Qa6 {[%emt 0:06:04]} 31. Kb2 {[%emt 0:02:28]} Ra8 {[%emt 0:03:37]} 32. Rf1 {[%emt 0:01:47]} Nf4 {[%emt 0:03:26]} 33. Rxe5 {[%emt 0:01:06]} N6d5 {[%emt 0:14:15]} 34. exd5 {[%emt 0:00:08]} Bxe5 {[%emt 0:00:11]} 35. dxc6 {[%emt 0:00:12]} Ne6 {[%emt 0:03:48]} 36. Qd5 {[%emt 0:01:10]} Bg7 {[%emt 0:00:51]} 37. h5 {[%emt 0:00:31]} Nc7 {[%emt 0:00:55]} 38. Qh1 {[%emt 0:00:19]} g5 {[%emt 0:01:42]} 39. h6 {[%emt 0:00:18]} Be5 {[%emt 0:00:31]} 40. Qe4 {[%emt 0:00:36]} Bxc3+ {[%emt 0:00:33]} 41. Kxc3 {[%emt 0:30:09]} 1-0

[Event "22nd Hoogeveen Open 2018"]
[Site "Hoogeveen"]
[Date "2018.10.22"]
[Round "4"]
[White "Hamblok, Roel"]
[Black "Mijnheer, Peter"]
[Result "1-0"]
[ECO "D02"]
[WhiteElo "2275"]
[BlackElo "2092"]
[Annotator "NA"]
[PlyCount "71"]
[EventDate "2018.10.20"]
[EventType "swiss"]
[EventCountry "NED"]
[SourceTitle "playchess.com"]
[Source "ChessBase"]
[SourceQuality "1"]
[TimeControl "40/5400+30:1800+30"]

1. d4 {[%emt 0:00:00]} d5 {[%emt 0:00:00]} 2. Bf4 {[%emt 0:00:02]} e6 {[%emt 0:00:00]} 3. e3 {[%emt 0:00:06]} Bd6 {[%emt 0:00:00]} 4. Bg3 {[%emt 0:00:06]} Nf6 {[%emt 0:00:09]} 5. Nd2 {[%emt 0:00:06]} O-O {[%emt 0:03:41]} 6. Ngf3 {[%emt 0:01:28]} b6 {[%emt 0:00:04]} 7. c3 {[%emt 0:00:21] D02: 1 d4 d5 2 Nf3 sidelines, including 2...Nf6 3 g3 and 2...Nf6 3 Bf4} c5 {[%emt 0:01:44]} (7... Ba6 8. Bxa6 Nxa6 9. Ne5 Nb8 10. f4 c5 11. Bh4 Be7 12. O-O Nfd7 13. Bxe7 Qxe7 14. Rf3 Nxe5 15. fxe5 {1-0 (29) Aronian,L (2767)-Giri,A (2782) chess.com INT 2018}) 8. Bd3 {[%emt 0:02:30]} Ba6 {[%emt 0:02:09]} 9. Bxa6 {[%emt 0:01:10]} Nxa6 {[%emt 0:00:03]} 10. Qe2 {[%emt 0:00:07]} Nc7 {[%emt 0:04:41]} 11. Rd1 {[%emt 0:01:26]} c4 $146 {[%emt 0:29:14]} ({Predecessor:} 11... cxd4 12. cxd4 Rc8 13. O-O Bxg3 14. hxg3 Qd7 {½-½ (14) Bachmann,K (2276)-Donchenko,A (2381) Finsterbergen 2009}) 12. Ne5 {[%emt 0:09:17]} Bxe5 {[%emt 0:05:55]} 13. Bxe5 {[%emt 0:02:32]} b5 {[%emt 0:04:07]} 14. O-O {[%emt 0:01:34]} Rb8 {[%emt 0:04:58]} 15. e4 {[%emt 0:02:56]} b4 {[%emt 0:08:51]} 16. exd5 {[%emt 0:11:42]} exd5 {[%emt 0:00:21]} 17. cxb4 {[%emt 0:01:35]} Rxb4 {[%emt 0:00:45]} 18. b3 {[%emt 0:00:24]} Nb5 {[%emt 0:04:03]} 19. Rc1 $11 {[%emt 0:02:24]} c3 {[%emt 0:08:43]} 20. Nb1 {[%emt 0:01:32]} Re8 {[%emt 0:02:26]} 21. Bxf6 {[%emt 0:10:14]} gxf6 {[%emt 0:02:33]} 22. Qg4+ {[%emt 0:00:54]} Kh8 {[%emt 0:00:23]} 23. Nxc3 {[%emt 0:00:55]} Nxd4 {[%emt 0:05:44]} 24. Qh5 {[%emt 0:01:39]} Qd6 {[%emt 0:07:34]} 25. Rfe1 {[%emt 0:06:32]} Rg8 {[%emt 0:01:04]} 26. g3 {[%emt 0:04:53]} Ne6 {[%emt 0:02:10]} 27. Qxf7 {[%emt 0:03:01]} Ng5 {[%emt 0:00:08]} 28. Qxd5 {[%emt 0:00:44]} Nh3+ {[%emt 0:00:30]} 29. Kf1 {[%emt 0:05:03]} Qa6+ {[%emt 0:00:29]} 30. Re2 {[%emt 0:00:20]} Rf4 {[%emt 0:01:08]} 31. Ke1 {[%emt 0:03:29]} Rxf2 {[%emt 0:00:34]} 32. Rxf2 {[%emt 0:00:52]} Nxf2 {[%emt 0:00:27]} 33. Kxf2 {[%emt 0:00:24]} Qb6+ {[%emt 0:00:03]} 34. Kg2 {[%emt 0:00:29]} Rd8 {[%emt 0:00:05]} 35. Qe4 {[%emt 0:02:38]} Rd2+ {[%emt 0:00:18]} 36. Ne2 {[%emt 0:00:57]} 1-0

[Event "22nd Hoogeveen Open 2018"]
[Site "Hoogeveen"]
[Date "2018.10.22"]
[Round "4"]
[White "Ojas Kulkarni"]
[Black "Karthikeyan, P.."]
[Result "0-1"]
[ECO "A28"]
[WhiteElo "2254"]
[BlackElo "2443"]
[Annotator "NA RC"]
[PlyCount "59"]
[EventDate "2018.10.20"]
[EventType "swiss"]
[EventCountry "NED"]
[SourceTitle "playchess.com"]
[Source "ChessBase"]
[SourceQuality "1"]
[TimeControl "40/5400+30:1800+30"]

1. c4 {[%emt 0:00:00]} e5 {[%emt 0:00:24]} 2. Nc3 {[%emt 0:00:00]} Nf6 {[%emt 0:00:24]} 3. Nf3 {[%emt 0:01:56]} Nc6 {[%emt 0:00:35]} 4. e3 {[%emt 0:00:38]} Bb4 {[%emt 0:01:45]} 5. Qc2 {[%emt 0:00:13]} O-O {[%emt 0:00:57]} 6. Nd5 {[%emt 0:00:14]} Re8 {[%emt 0:06:03]} 7. a3 {[%emt 0:02:10]} Bf8 {[%emt 0:01:17]} 8. Nxf6+ $146 {[%emt 0:11:29] A28: Englische Eröffnung (Vierspringer-Variante)} ({Vorgänger:} 8. Ng5 g6 9. Nxf6+ Qxf6 10. Ne4 Qe7 11. Nc3 Bg7 12. d3 d6 13. Nd5 Qd8 14. Be2 Ne7 15. O-O c6 16. Nxe7+ Qxe7 {½-½ (41) Heberla,B (2556)-Hracek,Z (2617) Poland 2015}) 8... Qxf6 {[%emt 0:00:07]} 9. b4 {[%emt 0:00:09]} e4 {[%emt 0:08:08]} 10. Bb2 {[%emt 0:00:14]} Qg6 {[%emt 0:00:25]} 11. Nd4 {[%emt 0:00:58]} Nxd4 {[%emt 0:26:18]} 12. Bxd4 {[%emt 0:00:22]} d6 {[%emt 0:02:01]} 13. Bb2 {[%emt 0:25:23]} c5 {[%emt 0:05:08]} 14. bxc5 {[%emt 0:01:04]} dxc5 {[%emt 0:01:21]} 15. O-O-O {[%emt 0:00:13]} Bd7 {[%emt 0:03:42]} 16. h4 {[%emt 0:04:24] [#]} (16. d4 $17) 16... Qa6 $1 {[%emt 0:00:44]} 17. Qc3 {[%emt 0:00:41]} Ba4 {[%emt 0:02:35]} 18. Re1 {[%emt 0:00:46]} b5 {[%emt 0:03:25]} 19. cxb5 {[%emt 0:01:08]} Bxb5 {[%emt 0:00:02]} 20. Bxb5 {[%emt 0:00:12]} Qxb5 {[%emt 0:00:03]} 21. h5 {[%emt 0:00:09]} h6 {[%emt 0:04:34]} 22. Rh4 $19 {[%emt 0:00:46]} f5 {[%emt 0:09:12]} 23. Rf4 {[%emt 0:08:00]} Rab8 {[%emt 0:06:14]} 24. Kb1 {[%emt 0:13:40]} Rb7 {[%emt 0:07:58]} 25. Rc1 {[%emt 0:00:26]} Reb8 {[%emt 0:04:36]} 26. Rc2 {[%emt 0:02:18]} Qd3 {[%emt 0:00:50]} 27. Ka2 {[%emt 0:02:22]} Rb3 {[%emt 0:02:13]} 28. Qe5 {[%emt 0:00:05]} Rxa3+ {[%emt 0:01:06]} 29. Kb1 {[%emt 0:00:08]} Rxb2+ {[%emt 0:00:29]} 30. Kxb2 {[%emt 0:00:30]} 0-1

[Event "22nd Hoogeveen Open 2018"]
[Site "Hoogeveen"]
[Date "2018.10.22"]
[Round "4"]
[White "Kokje, Joris"]
[Black "Biermann, Florian"]
[Result "1-0"]
[ECO "A65"]
[WhiteElo "2232"]
[BlackElo "2024"]
[Annotator "NA"]
[PlyCount "61"]
[EventDate "2018.10.20"]
[EventType "swiss"]
[EventCountry "NED"]
[SourceTitle "playchess.com"]
[Source "ChessBase"]
[SourceQuality "1"]
[TimeControl "40/5400+30:1800+30"]

1. d4 {[%emt 0:00:00]} Nf6 {[%emt 0:00:00]} 2. c4 {[%emt 0:00:00]} g6 {[%emt 0:00:00]} 3. f3 {[%emt 0:00:00]} Bg7 {[%emt 0:00:00]} 4. e4 {[%emt 0:00:00]} d6 {[%emt 0:00:04]} 5. Nc3 {[%emt 0:00:00]} O-O {[%emt 0:00:07]} 6. Nge2 {[%emt 0:00:00]} c5 {[%emt 0:02:58]} 7. d5 {[%emt 0:00:06]} e6 {[%emt 0:01:10]} 8. Ng3 {[%emt 0:00:06]} exd5 {[%emt 0:00:42]} 9. cxd5 {[%emt 0:00:07]} Nbd7 {[%emt 0:03:39] A65: Modern Benoni: 6 e4} 10. Be2 {[%emt 0:00:28]} Nh5 $146 {[%emt 0:03:14]} ({Predecessor:} 10... h5 11. O-O Nh7 12. Nh1 a6 13. a4 f5 14. exf5 gxf5 15. Nf2 Ne5 16. Nh3 Qf6 17. Nf4 {0-1 (50) Bologan,V (2681)-Grischuk,A (2764) Beijing 2012}) 11. Nxh5 {[%emt 0:04:29]} gxh5 {[%emt 0:02:50]} 12. O-O {[%emt 0:02:21]} Ne5 {[%emt 0:12:20]} 13. h3 {[%emt 0:04:48]} h4 {[%emt 0:05:13]} 14. f4 {[%emt 0:02:12]} Ng6 {[%emt 0:02:06]} 15. f5 {[%emt 0:00:49]} Ne5 {[%emt 0:02:14]} 16. Be3 {[%emt 0:02:06]} Qf6 {[%emt 0:06:53]} 17. Qd2 {[%emt 0:02:23]} h6 {[%emt 0:00:19]} 18. Rf4 {[%emt 0:04:14]} h5 {[%emt 0:11:36]} 19. Rff1 {[%emt 0:02:42]} Qe7 {[%emt 0:01:54]} 20. Bh6 {[%emt 0:02:15]} ({Resist} 20. Bxh5 $6 Nc4 $11) 20... Bxh6 {[%emt 0:03:20]} 21. Qxh6 {[%emt 0:00:47]} f6 {[%emt 0:00:18]} 22. Bxh5 {[%emt 0:02:06]} Qh7 {[%emt 0:10:03]} (22... Qg7 $16 {was worth a try.} 23. Qxg7+ Kxg7) 23. Qxh7+ {[%emt 0:01:02]} Kxh7 {[%emt 0:00:21]} 24. Nb5 {[%emt 0:02:50]} Rd8 {[%emt 0:00:07]} 25. Rf4 $18 {[%emt 0:02:47]} Kh6 {[%emt 0:01:33]} 26. Rxh4 {[%emt 0:05:53]} Kg5 {[%emt 0:07:02]} 27. g3 {[%emt 0:00:46]} Rh8 {[%emt 0:00:43]} 28. Be2 {[%emt 0:00:29]} Rxh4 {[%emt 0:00:19]} 29. gxh4+ {[%emt 0:00:05]} Kxh4 {[%emt 0:00:43]} 30. Nxd6 {[%emt 0:00:40]} Kxh3 {[%emt 0:00:15]} 31. Kf2 {[%emt 0:00:18]} 1-0

[Event "22nd Hoogeveen Open 2018"]
[Site "Hoogeveen"]
[Date "2018.10.22"]
[Round "4"]
[White "Sparenberg, Erik"]
[Black "Baskin, Robert"]
[Result "1/2-1/2"]
[ECO "A30"]
[WhiteElo "2224"]
[BlackElo "2348"]
[Annotator "NA"]
[PlyCount "46"]
[EventDate "2018.10.20"]
[EventType "swiss"]
[EventCountry "NED"]
[SourceTitle "playchess.com"]
[Source "ChessBase"]
[SourceQuality "1"]
[TimeControl "40/5400+30:1800+30"]

1. Nf3 {[%emt 0:00:17]} Nf6 {[%emt 0:03:16]} 2. c4 {[%emt 0:00:07]} b6 {[%emt 0:03:17]} 3. g3 {[%emt 0:00:21]} Bb7 {[%emt 0:00:12]} 4. Bg2 {[%emt 0:00:05]} c5 {[%emt 0:00:58]} 5. Nc3 {[%emt 0:01:12]} g6 {[%emt 0:00:31]} 6. O-O {[%emt 0:00:11]} Bg7 {[%emt 0:00:03]} 7. d4 {[%emt 0:09:00]} cxd4 {[%emt 0:00:23]} 8. Qxd4 {[%emt 0:00:10]} d6 {[%emt 0:00:37]} 9. Rd1 {[%emt 0:08:34]} O-O {[%emt 0:00:56]} 10. Qh4 {[%emt 0:00:56]} Nbd7 {[%emt 0:01:40]} 11. Bh6 {[%emt 0:03:03]} Rc8 {[%emt 0:02:51]} 12. Bxg7 {[%emt 0:00:41]} Kxg7 {[%emt 0:00:05]} 13. Qd4 {[%emt 0:04:02]} Bxf3 {[%emt 0:10:21]} 14. exf3 {[%emt 0:02:10]} a6 {[%emt 0:01:22]} 15. f4 {[%emt 0:05:26]} Rb8 {[%emt 0:05:18]} 16. b4 {[%emt 0:09:40]} Kg8 {[%emt 0:02:20]} 17. Rac1 {[%emt 0:04:42]} Re8 {[%emt 0:09:28]} 18. h4 {[%emt 0:06:43]} a5 {[%emt 0:04:05]} 19. a3 {[%emt 0:04:42]} Rc8 {[%emt 0:01:33]} 20. Nb5 {[%emt 0:01:40]} Rb8 {[%emt 0:02:40]} 21. Na7 {[%emt 0:07:40]} Qc7 {[%emt 0:01:03]} 22. Nb5 {[%emt 0:03:14]} Qc8 {[%emt 0:00:27]} 23. Na7 $11 {[%emt 0:03:47]} ({Better is} 23. Re1 $18) 23... Qc7 {[%emt 0:00:10]} 1/2-1/2

[Event "22nd Hoogeveen Open 2018"]
[Site "Hoogeveen"]
[Date "2018.10.22"]
[Round "4"]
[White "Murray, David"]
[Black "Winkels, Marcel"]
[Result "1-0"]
[ECO "B90"]
[WhiteElo "2222"]
[BlackElo "1935"]
[Annotator "NA"]
[PlyCount "61"]
[EventDate "2018.10.20"]
[EventType "swiss"]
[EventCountry "NED"]
[SourceTitle "playchess.com"]
[Source "ChessBase"]
[SourceQuality "1"]
[TimeControl "40/5400+30:1800+30"]

1. e4 {[%emt 0:00:00]} c5 {[%emt 0:00:00]} 2. Nf3 {[%emt 0:00:00]} d6 {[%emt 0:00:00]} 3. d4 {[%emt 0:00:00]} cxd4 {[%emt 0:00:00]} 4. Nxd4 {[%emt 0:00:00]} Nf6 {[%emt 0:00:00]} 5. Nc3 {[%emt 0:00:00]} a6 {[%emt 0:00:00]} 6. h3 {[%emt 0:00:26]} e5 {[%emt 0:00:03]} 7. Nde2 {[%emt 0:00:24]} h5 {[%emt 0:00:10] B90: Sicilian Najdorf: Unusual White 6th moves, 6 Be3 Ng4 and 6 Be3 e5} (7... b5 8. Ng3 Nbd7 9. Bg5 h6 10. Be3 Bb7 11. Bd3 h5 12. Bg5 g6 13. O-O Be7 14. a3 h4 15. Nge2 Nc5 16. Bxf6 Bxf6 {1-0 (48) Dominguez Perez,L (2739)-Vachier Lagrave,M (2779) chess.com INT 2018}) 8. Bg5 {[%emt 0:00:35]} Be6 {[%emt 0:00:16]} 9. Bxf6 {[%emt 0:02:18]} Qxf6 {[%emt 0:00:03]} 10. Qd3 {[%emt 0:01:31]} Nc6 {[%emt 0:01:34]} 11. Nd5 {[%emt 0:01:32]} Qd8 {[%emt 0:00:53]} 12. O-O-O {[%emt 0:02:42]} g6 {[%emt 0:00:57]} 13. g3 {[%emt 0:02:37] [#]} Bh6+ $146 {[%emt 0:00:12]} ({Predecessor:} 13... Bg7 14. h4 Qa5 15. Kb1 O-O-O 16. Bg2 Kb8 17. a3 Qc5 18. Rhf1 f5 19. Nec3 Qa5 {½-½ (19) Alonso,S (2512)-Mareco,S (2585) Mar del Plata 2014}) 14. Kb1 {[%emt 0:00:30]} O-O {[%emt 0:02:09]} 15. f4 {[%emt 0:03:20]} Rc8 {[%emt 0:01:52]} 16. a3 {[%emt 0:05:53]} Kg7 {[%emt 0:07:57]} 17. f5 {[%emt 0:04:10]} Bxd5 {[%emt 0:07:07]} 18. Qxd5 {[%emt 0:02:25]} Qb6 {[%emt 0:12:03]} 19. Qd3 {[%emt 0:09:37]} Rfd8 {[%emt 0:06:59]} 20. Nc3 {[%emt 0:07:38]} Nd4 {[%emt 0:05:52]} (20... Qe3 $16 {was called for.}) 21. Nd5 {[%emt 0:04:34]} Qa5 {[%emt 0:03:08]} 22. c3 $18 {[%emt 0:14:30]} Nc6 {[%emt 0:05:59]} 23. Qf3 {[%emt 0:01:57]} Rf8 {[%emt 0:05:55]} 24. Rg1 {[%emt 0:01:01]} Qc5 {[%emt 0:15:20]} 25. Bd3 {[%emt 0:01:25]} Bg5 {[%emt 0:07:38]} 26. h4 {[%emt 0:02:06]} Bd8 {[%emt 0:00:40]} 27. Rdf1 {[%emt 0:06:00]} Rg8 {[%emt 0:09:35]} 28. g4 {[%emt 0:05:52]} Kh7 {[%emt 0:04:01]} 29. fxg6+ {[%emt 0:01:31]} fxg6 {[%emt 0:00:36]} 30. gxh5 {[%emt 0:00:42]} g5 {[%emt 0:01:35]} 31. Qf5+ {[%emt 0:01:06]} 1-0